fUST/lending_fUST_20251101
["ID","MTS","AMOUNT","RATE_DAILY","PERIOD"]
[392803407,1761970510017,300.0,0.00037999,60]
[392803408,1761970510179,151.0,0.00037999,120]
[392803409,1761970540844,208.222453,0.00013699,2]
[392803410,1761970541074,208.222453,0.00020187,2]
[392803411,1761970541290,208.222453,0.00026676,2]
[392803412,1761970541479,208.222453,0.00033165,2]
[392803413,1761970575734,315.8224616,0.00035155,2]
[392803414,1761970627222,800.0,0.00026406,2]
[392803416,1761970705782,8051.2977264,0.00035989,2]
[392803417,1761970705806,10000.01,0.00035989,2]
[392803418,1761970705827,10000.01,0.00035989,2]
[392803419,1761970705846,10000.01,0.00035989,2]
[392803420,1761970705866,10000.01,0.00035989,2]
[392803421,1761970705885,10000.01,0.00035989,2]
[392803422,1761970705909,10000.01,0.00035989,2]
[392803423,1761970705928,10000.01,0.00035989,2]
[392803424,1761970705949,10000.01,0.00035989,2]
[392803425,1761970705969,10000.01,0.00035989,2]
[392803426,1761970705990,3017.05622132,0.00035989,2]
[392803427,1761970786249,224.32951731,0.00035959,15]
[392803428,1761970810453,851.0710443,0.00035155,2]
[392803429,1761970818614,-351.58017507,0.00035948,2]
[392803430,1761970820971,-686.29831055,0.00035948,2]
[392803431,1761970872756,400.0,0.00035989,2]
[392803432,1761970924729,400.0,0.00035989,2]
[392803433,1761970927192,1895.41555579,0.00035876,2]
[392803439,1761970960187,791.0,0.00035989,3]
[392803440,1761970987126,800.0,0.00032202,2]
[392803441,1761970987350,800.0,0.00032117,2]
[392803442,1761970987375,800.0,0.0003204,2]
[392803443,1761970987402,800.0,0.00032219,2]
[392803444,1761970987436,800.0,0.00032235,2]
[392803445,1761970987470,800.0,0.00032215,2]
[392803446,1761970987497,340.99782311,0.00032253,2]
[392803447,1761970987518,459.00217689,0.00032253,2]
[392803448,1761970987973,162.153632,0.00035775,4]
[392803449,1761971031053,437.51594898,0.00035989,2]
[392803450,1761971069048,908.1436749,0.00035948,2]
[392803451,1761971140691,2766.84267927,0.00035975,2]
[392803455,1761971189782,881.66,0.0003598,10]
[392803456,1761971192247,219.27085172,0.00035989,15]
[392803457,1761971192273,435.26498579,0.00035989,15]
[392803458,1761971192301,466.03526917,0.00035989,15]
[392803459,1761971192326,500.0,0.00035989,15]
[392803460,1761971192352,500.0,0.00035989,2]
[392803461,1761971192382,453.12259035,0.00035989,15]
[392803462,1761971192408,264.06626156,0.00035989,2]
[392803463,1761971192433,508.49887896,0.00035989,15]
[392803464,1761971200821,1376.56,0.0003598,10]
[392803465,1761971211681,1147.13,0.0003598,10]
[392803466,1761971222370,481.55848318,0.0003598,10]
[392803467,1761971222394,474.38151682,0.0003598,10]
[392803468,1761971233193,796.62,0.0003598,10]
[392803469,1761971243702,663.85,0.0003598,10]
[392803470,1761971254707,553.21,0.0003598,10]
[392803471,1761971265560,461.01,0.0003598,10]
[392803472,1761971276202,384.17,0.0003598,10]
[392803474,1761971317605,999.0,0.00034356,2]
[392803476,1761971319642,794.62571559,0.00035899,2]
[392803477,1761971334733,787.52870816,0.00035989,2]
[392803478,1761971338880,533.354812,0.00034356,2]
[392803479,1761971376093,-203.0,0.0003599,42]
[392803480,1761971376120,-400.0,0.0003599,2]
[392803481,1761971376146,-400.0,0.00035991,3]
[392803482,1761971376172,-400.0,0.00035991,3]
[392803483,1761971376198,-1600.0,0.00035991,3]
[392803484,1761971376226,-68.591348,0.00035992,2]
[392803485,1761971376464,-3856.827304,0.00035992,2]
[392803486,1761971376492,-493.7716034,0.00035992,2]
[392803487,1761971378946,-4540.6728471,0.00035992,2]
[392803512,1761971432363,-625.36181593,0.00035998,3]
[392803513,1761971432375,-974.63818407,0.00035998,3]
[392803514,1761971432384,-506.45761781,0.00035999,4]
[392803515,1761971432398,-567.404979,0.00035999,4]
[392803516,1761971432410,-524.0609473,0.00035999,120]
[392803517,1761971432419,-500.0,0.00035999,2]
[392803518,1761971432428,-200.0,0.00035999,2]
[392803519,1761971432438,-400.0,0.00035999,3]
[392803520,1761971432447,-4249.45239947,0.00036,7]
[392803523,1761971432475,-701.71191315,0.00036,7]
[392803530,1761971432535,-19052.1244977,0.00036,7]
[392803628,1761971438230,-23429.80099906,0.00036,7]
[392803629,1761971438246,-22719.90393238,0.00036,7]
[392803630,1761971438259,-1116.45259264,0.00036,7]
[392803631,1761971438271,-680.82787613,0.00036,7]
[392803632,1761971438283,-593.12454368,0.00036,7]
[392803633,1761971438295,-532.70383983,0.00036,7]
[392803634,1761971438307,-1205.24441864,0.00036,7]
[392803635,1761971438340,-9144.08484011,0.00036,7]
[392803640,1761971440506,-500.0,0.00036,7]
[392803641,1761971440563,-202856.87325468,0.00036,7]
[392803650,1761971446881,-3935.53919583,0.00036,7]
[392803651,1761971468323,-298.09166916,0.0003599,2]
[392803652,1761971471652,400.0,0.00035989,2]
[392803653,1761971491657,243.12,0.0003598,10]
[392803654,1761971494887,152.0,0.00025205,2]
[392803655,1761971502000,202.6,0.0003598,10]
[392803656,1761971512683,168.84,0.0003598,10]
[392803657,1761971523505,217.72,0.00035989,10]
[392803658,1761971528822,400.0,0.00035989,2]
[392803659,1761971534594,181.43,0.00035989,10]
[392803660,1761971534912,695.29750115,0.00035899,2]
[392803661,1761971545371,151.19,0.00035989,10]
[392803662,1761971552434,500.0,0.00035989,15]
[392803663,1761971552461,500.0,0.00035989,15]
[392803664,1761971552488,505.35424432,0.00035989,15]
[392803665,1761971552516,500.0,0.00035989,15]
[392803666,1761971552544,500.0,0.00035989,15]
[392803667,1761971552571,500.0,0.00035989,15]
[392803668,1761971552597,500.0,0.00035989,2]
[392803669,1761971552623,500.0,0.00035989,15]
[392803670,1761971552649,500.0,0.00035989,15]
[392803671,1761971552675,500.0,0.00035989,15]
[392803672,1761971552702,615.77312642,0.00035989,2]
[392803673,1761971552731,500.0,0.00035989,15]
[392803674,1761971552759,500.0,0.00035989,15]
[392803675,1761971552787,500.0,0.00035989,15]
[392803676,1761971556207,66.68512811,0.00035989,10]
[392803677,1761971557778,-689.30487189,0.00035989,10]
[392803679,1761971571898,4921.75577626,0.00038006,120]
[392803680,1761971581097,334.00343396,0.00035899,2]
[392803681,1761971589540,400.0,0.00035989,2]
[392803684,1761971592949,7887.39682226,0.00035982,3]
[392803685,1761971599973,-487.49,0.0003598,10]
[392803686,1761971605977,-6806.13501344,0.00035982,3]
[392803687,1761971609160,-300.0,0.000359,2]
[392803688,1761971609193,-9400.01,0.00035982,3]
[392803689,1761971615035,-10000.01,0.00035949,2]
[392803690,1761971690170,150.0,0.0002589,2]
[392803691,1761971691566,-177.0,0.0002789,2]
[392803692,1761971691587,-123.0,0.0002989,2]
[392803693,1761971692122,-98.74467569,0.0002989,2]
[392803694,1761971703111,193.62791147,0.00025205,2]
[392803695,1761971706798,5000.0,0.00026,2]
[392803696,1761971725834,-168.0,0.00035103,2]
[392803697,1761971725863,-2029.18852313,0.00035279,2]
[392803698,1761971725892,-1600.0,0.00035359,3]
[392803699,1761971725920,-400.0,0.00035359,2]
[392803700,1761971726003,-2029.18852313,0.0003536,2]
[392803701,1761971726030,-2029.18852313,0.00035667,2]
[392803702,1761971726057,-222.66895598,0.00035882,2]
[392803703,1761971726084,-608.38531348,0.00035882,2]
[392803704,1761971726172,-222.66895597,0.00035886,2]
[392803705,1761971726200,-3432.94975757,0.0003589,2]
[392803706,1761971726333,-2688.77257292,0.0003589,2]
[392803707,1761971726343,-300.0,0.000359,2]
[392803708,1761971726352,-300.0,0.000359,2]
[392803709,1761971726363,-300.0,0.000359,2]
[392803710,1761971726372,-300.0,0.000359,2]
[392803711,1761971726382,-300.0,0.000359,2]
[392803712,1761971726390,-300.0,0.000359,2]
[392803713,1761971726401,-26.7803223,0.00035949,2]
[392803714,1761971728700,-222.66895597,0.0003589,2]
[392803715,1761971728736,-9554.67208806,0.00035949,2]
[392803716,1761971729354,5000.0,0.00026,2]
[392803717,1761971731611,-494.21982743,0.00035949,2]
[392803718,1761971731640,-2889.84801465,0.00035955,2]
[392803719,1761971731683,-3231.87431584,0.00035955,2]
[392803720,1761971733647,300.0,0.000339,2]
[392803721,1761971739729,300.0,0.000359,2]
[392803722,1761971744658,300.0,0.000299,2]
[392803723,1761971750105,300.0,0.000359,2]
[392803724,1761971751356,5000.0,0.00035955,2]
[392803726,1761971787911,2029.18852314,0.00035801,2]
[392803740,1761971846078,300.0,0.000358,2]
[392803745,1761971872869,1470.82147686,0.00035949,2]
[392803746,1761971872895,10000.01,0.00035949,2]
[392803747,1761971872917,1912.95668166,0.00035949,2]
[392803750,1761971898964,1981.33887923,0.0003,2]
[392803753,1761971905243,213.08227602,0.000358,2]
[392803765,1761971940955,532.33714926,0.0003588,2]
[392803769,1761971955258,500.0,0.00035948,2]
[392803782,1761971992204,3673.03339831,0.0003588,2]
[392803783,1761971993415,1187.26161552,0.0003592,2]
[392803784,1761971993437,2485.77178277,0.0003592,2]
[392803791,1761972018131,156.70054855,0.00038018,30]
[392803822,1761972153679,412.55201611,0.00038018,120]
[392803827,1761972335498,-215.456685,0.00034419,2]
[392803828,1761972335530,-168.0,0.00035267,2]
[392803829,1761972335560,-244.0,0.00035531,2]
[392803830,1761972335587,-2029.18852314,0.00035714,2]
[392803831,1761972344396,-244.0,0.00035003,7]
[392803832,1761972348934,244.0,0.000354,120]
[392803875,1761972562467,-1712.94780095,0.0003299,2]
[392803876,1761972562767,-10000.01,0.0003299,2]
[392803877,1761972562869,-10000.01,0.0003299,2]
[392803878,1761972562977,-10000.01,0.0003299,2]
[392803879,1761972563114,-10000.01,0.0003299,2]
[392803880,1761972563242,-10000.01,0.0003299,2]
[392803881,1761972563354,-10000.01,0.0003299,2]
[392803882,1761972563493,-10000.01,0.0003299,2]
[392803883,1761972563648,-10000.01,0.0003299,2]
[392803884,1761972563812,-10000.01,0.0003299,2]
[392803888,1761972577330,-155.89,0.0003298,10]
[392803889,1761972577358,-1401.26780095,0.0003299,2]
[392803890,1761972577397,-6885.6943981,0.0003299,2]
[392803901,1761972612299,258.0,0.0002589,2]
[392803906,1761972625703,-1089.0119315,0.00034273,2]
[392803907,1761972629034,300.0,0.00033,2]
[392803923,1761972632452,-39178.8550329,0.00034575,2]
[392803924,1761972632462,-452.20780805,0.00034911,2]
[392803925,1761972632473,-232.79219195,0.00034911,2]
[392803926,1761972632483,-168.0,0.00035144,2]
[392803927,1761972632492,-160.0,0.00035432,3]
[392803928,1761972632501,-168.0,0.00035507,7]
[392803929,1761972632510,-685.0,0.00035539,7]
[392803930,1761972632520,-168.0,0.00035628,7]
[392803931,1761972632529,-1600.0,0.00035761,3]
[392803932,1761972632538,-220.0,0.00035761,3]
[392803933,1761972632548,-465.79500562,0.00035762,2]
[392803934,1761972632556,-2149.4322894,0.00035762,4]
[392803935,1761972632566,-400.0,0.00035771,3]
[392803936,1761972632575,-225.0,0.00035771,3]
[392803937,1761972632584,-400.0,0.00035771,3]
[392803938,1761972632593,-400.0,0.00035771,2]
[392803939,1761972632602,-1185.0,0.00035772,3]
[392803940,1761972632611,-537.00102422,0.00035772,4]
[392803941,1761972632620,-500.0,0.00035772,4]
[392803942,1761972632630,-500.0,0.00035772,4]
[392803943,1761972632640,-542.46364624,0.00035772,4]
[392803944,1761972632649,-422.21333796,0.00035772,4]
[392803945,1761972632658,-587.1,0.00035772,4]
[392803946,1761972632667,-500.0,0.00035772,4]
[392803948,1761972632677,-500.0,0.00035772,4]
[392803949,1761972632686,-538.38686001,0.00035772,4]
[392803950,1761972632695,-541.55140959,0.00035772,4]
[392803951,1761972632704,-500.0,0.00035772,4]
[392803952,1761972632713,-500.0,0.00035772,4]
[392803953,1761972632722,-500.54926626,0.00035772,4]
[392803954,1761972632731,-500.0,0.00035772,4]
[392803955,1761972632740,-550.31594281,0.00035772,4]
[392803956,1761972632749,-500.0,0.00035772,4]
[392803958,1761972632758,-400.71369459,0.00035772,4]
[392803960,1761972632768,-500.0,0.00035772,4]
[392803962,1761972632777,-310.11973721,0.00035772,4]
[392803965,1761972632792,-189.88026279,0.00035772,4]
[392803966,1761972632801,-9083.75691943,0.00035772,2]
[392803975,1761972638448,-500.0,0.0003577,15]
[392803976,1761972638458,-500.0,0.0003577,15]
[392803977,1761972638468,-500.0,0.0003577,15]
[392803978,1761972638477,-500.0,0.0003577,2]
[392803979,1761972638486,-500.0,0.0003577,15]
[392803980,1761972638496,-500.0,0.0003577,2]
[392803981,1761972638506,-606.78920724,0.0003577,15]
[392803982,1761972638515,-500.0,0.0003577,15]
[392803983,1761972638524,-500.0,0.0003577,15]
[392803984,1761972638533,-500.0,0.0003577,2]
[392803985,1761972638542,-500.0,0.0003577,15]
[392803986,1761972638552,-500.0,0.0003577,2]
[392803987,1761972638560,-500.0,0.0003577,15]
[392803988,1761972638570,-500.0,0.0003577,15]
[392803989,1761972638579,-500.0,0.0003577,2]
[392803990,1761972638588,-371.63145424,0.0003577,15]
[392803991,1761972638597,-500.0,0.0003577,2]
[392803992,1761972638606,-408.63337804,0.0003577,15]
[392803993,1761972638615,-500.0,0.0003577,15]
[392803994,1761972638624,-500.0,0.0003577,2]
[392803995,1761972638634,-500.0,0.0003577,15]
[392803996,1761972638643,-500.0,0.0003577,2]
[392803997,1761972638653,-500.0,0.0003577,15]
[392803998,1761972638661,-500.0,0.0003577,2]
[392803999,1761972638670,-500.0,0.0003577,2]
[392804000,1761972638679,-500.0,0.0003577,2]
[392804001,1761972638689,-500.0,0.0003577,2]
[392804002,1761972638698,-500.0,0.0003577,2]
[392804003,1761972638707,-500.0,0.0003577,2]
[392804004,1761972638716,-500.0,0.0003577,2]
[392804005,1761972638726,-500.0,0.0003577,2]
[392804006,1761972638735,-346.75825272,0.0003577,2]
[392804007,1761972638744,-360.27371345,0.00035771,4]
[392804008,1761972638759,-155.91694113,0.00035771,4]
[392804009,1761972638768,-584.83216337,0.00035772,4]
[392804010,1761972638778,-248.09352645,0.00035772,4]
[392804011,1761972638787,-40916.24308057,0.00035772,2]
[392804012,1761972638796,-500.0,0.00035773,5]
[392804013,1761972638805,-512.8113077,0.00035773,5]
[392804014,1761972638814,-565.85584861,0.00035773,2]
[392804015,1761972638823,-511.09670003,0.00035773,5]
[392804016,1761972638832,-409.28193176,0.00035773,3]
[392804017,1761972638842,-11019.10019487,0.00035773,2]
[392804018,1761972638851,-1926.31137559,0.00035779,2]
[392804019,1761972638864,-168.0,0.00035851,2]
[392804020,1761972638873,-779.49,0.00035851,10]
[392804021,1761972638882,-500.0,0.0003586,15]
[392804022,1761972638891,-504.99305617,0.0003586,15]
[392804023,1761972638900,-151.0,0.00035861,2]
[392804024,1761972638909,-151.0,0.00035861,2]
[392804025,1761972638918,-151.0,0.00035861,2]
[392804026,1761972638927,-151.0,0.00035861,2]
[392804027,1761972638936,-151.0,0.00035861,2]
[392804028,1761972638945,-151.0,0.00035861,2]
[392804029,1761972638954,-151.0,0.00035861,2]
[392804030,1761972638963,-151.0,0.00035861,2]
[392804031,1761972638973,-151.0,0.00035861,2]
[392804032,1761972638983,-151.0,0.00035861,2]
[392804033,1761972638992,-151.0,0.00035861,2]
[392804034,1761972639001,-151.0,0.00035861,2]
[392804035,1761972639010,-151.0,0.00035861,2]
[392804036,1761972639020,-151.0,0.00035861,2]
[392804037,1761972639029,-151.0,0.00035861,2]
[392804038,1761972639038,-151.0,0.00035861,2]
[392804039,1761972639048,-151.0,0.00035861,2]
[392804040,1761972639057,-151.0,0.00035861,2]
[392804041,1761972639067,-151.0,0.00035861,2]
[392804042,1761972639076,-151.0,0.00035861,2]
[392804043,1761972639084,-151.0,0.00035861,2]
[392804044,1761972639096,-151.0,0.00035861,2]
[392804045,1761972639106,-151.0,0.00035861,2]
[392804046,1761972639115,-151.0,0.00035861,2]
[392804047,1761972639124,-151.0,0.00035861,2]
[392804048,1761972639134,-151.0,0.00035861,2]
[392804049,1761972639143,-151.0,0.00035861,2]
[392804050,1761972639152,-151.0,0.00035861,2]
[392804051,1761972639161,-151.0,0.00035861,2]
[392804052,1761972639170,-151.0,0.00035861,2]
[392804053,1761972639179,-151.0,0.00035861,2]
[392804054,1761972639189,-151.0,0.00035861,2]
[392804055,1761972639198,-256.14351418,0.00035861,2]
[392804056,1761972639208,-999.0,0.00035861,120]
[392804057,1761972639217,-511.89176469,0.00035862,4]
[392804058,1761972639227,-600.64535069,0.00035862,4]
[392804059,1761972639236,-328.58335024,0.00035862,4]
[392804060,1761972639245,-500.0,0.00035862,4]
[392804061,1761972639255,-403.25467212,0.00035862,4]
[392804062,1761972639264,-527.45198853,0.00035862,4]
[392804063,1761972639273,-500.0,0.00035862,4]
[392804064,1761972639283,-523.33207527,0.00035862,4]
[392804065,1761972639292,-500.0,0.00035862,4]
[392804066,1761972639301,-509.2519028,0.00035862,4]
[392804067,1761972639311,-500.0,0.00035862,4]
[392804068,1761972639320,-154.421873,0.00035862,31]
[392804069,1761972639328,-549.35798237,0.00035862,4]
[392804070,1761972639337,-500.0,0.00035862,4]
[392804071,1761972639346,-506.4119492,0.00035862,4]
[392804072,1761972639355,-151.0,0.00035862,31]
[392804073,1761972639363,-151.0,0.00035862,31]
[392804074,1761972639372,-203.57398217,0.00035862,31]
[392804075,1761972639381,-192.404316,0.00035862,31]
[392804076,1761972639390,-192.404316,0.00035862,31]
[392804077,1761972639398,-192.404316,0.00035862,31]
[392804078,1761972639407,-192.404316,0.00035862,31]
[392804079,1761972639416,-192.404316,0.00035862,31]
[392804080,1761972639425,-192.404316,0.00035862,31]
[392804081,1761972639434,-61590.52777561,0.00035862,3]
[392804082,1761972639642,300.0,0.00033,2]
[392804085,1761972640666,-501.30228798,0.00035772,4]
[392804087,1761972640676,-192.404316,0.00035862,31]
[392804089,1761972640686,-192.404316,0.00035862,31]
[392804091,1761972640695,-30086.10863629,0.00035862,3]
[392804093,1761972640704,-1658.85050291,0.00035862,3]
[392804095,1761972640714,-272210.20008557,0.00035863,3]
[392804097,1761972640725,-504.54720671,0.00035863,3]
[392804100,1761972640741,-420.0,0.00035863,3]
[392804177,1761972643531,-546.77695365,0.00035772,4]
[392804178,1761972643540,-8717.7230464,0.00035863,3]
[392804197,1761972684399,408.0,0.00026,2]
[392804202,1761972704086,3836.1405,0.00038018,30]
[392804211,1761972731982,2598.90515251,0.00030652,2]
[392804212,1761972732003,2401.09484749,0.00030652,2]
[392804218,1761972754434,1949.19448867,0.00026,2]
[392804243,1761972803247,578.0,0.00035009,120]
[392804246,1761972807441,-5000.0,0.00030652,2]
[392804249,1761972813316,-452.33990278,0.000329,2]
[392804251,1761972813344,-300.0,0.00033,2]
[392804252,1761972813372,-300.0,0.00033,2]
[392804253,1761972813400,-300.0,0.00033,2]
[392804254,1761972813427,-300.0,0.00033,2]
[392804257,1761972817767,-168.0,0.00034497,2]
[392804258,1761972817788,-113.8175859,0.00034575,2]
[392804259,1761972819305,-68.8614141,0.00034575,2]
[392804265,1761972833510,-386.89596746,0.00030652,2]
[392804272,1761972843004,-328.6489082,0.00030652,2]
[392804274,1761972845060,-151.89037683,0.00030652,2]
[392804275,1761972846597,-250.52466227,0.00030652,2]
[392804276,1761972848478,-151.89037683,0.00030652,2]
[392804277,1761972851496,-250.52466227,0.00030652,2]
[392804278,1761972855472,-196.010996,0.00030652,2]
[392804282,1761972867739,-499.82417687,0.00030552,2]
[392804283,1761972867874,-6451.17715759,0.00030552,2]
[392804285,1761972873643,-2549.18448867,0.00030552,2]
[392804286,1761972873670,-1618.02697252,0.00030652,2]
[392804287,1761972873709,-1665.58707762,0.00030652,2]
[392804297,1761972892361,4997.26585046,0.00026,2]
[392804308,1761972924674,150.0,0.0002589,2]
[392804309,1761972925382,-177.0,0.0002789,2]
[392804310,1761972926667,258.0,0.0003389,120]
[392804317,1761972950650,246.3546561,0.00026,2]
[392804326,1761972981186,649.43680693,0.00038014,30]
[392804390,1761973178044,295.729564,0.00013699,2]
[392804391,1761973178197,295.729564,0.00020187,2]
[392804392,1761973178385,295.729564,0.00026676,2]
[392804395,1761973189684,336.39839365,0.00026,2]
[392804409,1761973215215,-204.0,0.0002989,2]
[392804410,1761973215248,-200.0,0.0002989,2]
[392804411,1761973215280,-231.0,0.0003189,2]
[392804412,1761973215308,-1731.0,0.00033,2]
[392804413,1761973215339,-295.729564,0.00033165,2]
[392804414,1761973215368,-322.8952469,0.00033813,2]
[392804415,1761973215401,-347.0,0.00034329,2]
[392804416,1761973215430,-1600.0,0.00034359,3]
[392804419,1761973221152,-1972.2685056,0.0003436,2]
[392804420,1761973221179,-160.0,0.00034365,2]
[392804425,1761973238678,150.0,0.0002589,2]
[392804426,1761973240435,841.0,0.00034657,120]
[392804428,1761973245261,-177.0,0.0002789,2]
[392804429,1761973245294,-163.23106766,0.0002989,2]
[392804431,1761973249951,198.80347208,0.00034641,120]
[392804432,1761973250750,403.98447456,0.00035616,30]
[392804434,1761973266573,999.0,0.00034989,120]
[392804437,1761973295593,196.935425,0.00035458,31]
[392804440,1761973310577,201.196295,0.00035458,31]
[392804443,1761973337854,170.940346,0.00035458,31]
[392804445,1761973353370,151.0,0.00035458,31]
[392804446,1761973354802,151.0,0.00035458,31]
[392804447,1761973356230,151.0,0.00035458,31]
[392804448,1761973356418,151.0,0.00035458,31]
[392804452,1761973458299,-812.7328028,0.00033435,2]
[392804453,1761973458333,-2245.0,0.0003415,2]
[392804454,1761973458362,-1400.05103673,0.0003419,2]
[392804455,1761973458420,155.237158,0.00035458,31]
[392804456,1761973464191,-4899.73467093,0.0003299,2]
[392804457,1761973467132,-10000.01,0.0003299,2]
[392804458,1761973470400,-10000.01,0.0003299,2]
[392804459,1761973473162,-500.0,0.00032989,7]
[392804460,1761973473194,-646.9647818,0.00032989,7]
[392804461,1761973473223,-389.99479004,0.00032989,7]
[392804462,1761973473254,-500.0,0.00032989,2]
[392804463,1761973473285,-500.0,0.00032989,7]
[392804464,1761973473316,-500.0,0.00032989,7]
[392804465,1761973473348,-650.0,0.00032989,7]
[392804466,1761973473378,-500.0,0.00032989,2]
[392804467,1761973473409,-500.0,0.00032989,7]
[392804468,1761973473437,-126.09085632,0.00032989,7]
[392804469,1761973473663,-373.90914368,0.00032989,7]
[392804470,1761973479191,-500.0,0.00032989,2]
[392804471,1761973479232,-500.0,0.00032989,7]
[392804472,1761973479266,-500.0,0.00032989,7]
[392804473,1761973479303,-500.0,0.00032989,2]
[392804474,1761973479339,-392.70417412,0.00032989,7]
[392804475,1761973479379,-500.0,0.00032989,2]
[392804476,1761973479418,-500.0,0.00032989,7]
[392804477,1761973479456,-500.0,0.00032989,7]
[392804478,1761973479488,-206.62170442,0.00032989,2]
[392804479,1761973479527,-500.0,0.00032989,7]
[392804480,1761973479561,-301.35824292,0.00032989,7]
[392804481,1761973479663,-198.64175708,0.00032989,7]
[392804482,1761973479697,-500.0,0.00032989,2]
[392804483,1761973479731,-500.0,0.00032989,7]
[392804484,1761973479767,-500.0,0.00032989,7]
[392804485,1761973479802,-500.0,0.00032989,7]
[392804486,1761973479836,-458.93099865,0.00032989,7]
[392804487,1761973479869,-500.0,0.00032989,7]
[392804488,1761973479904,-500.0,0.00032989,7]
[392804489,1761973479937,-500.0,0.00032989,2]
[392804490,1761973479973,-500.0,0.00032989,7]
[392804491,1761973480133,-184.86448854,0.00032989,7]
[392804492,1761973480455,-54.84626989,0.00032989,7]
[392804493,1761973480476,-260.28924157,0.00032989,7]
[392804494,1761973480487,-239.71075843,0.00032989,2]
[392804495,1761973482263,-260.28924157,0.00032989,2]
[392804496,1761973482295,-500.0,0.00032989,7]
[392804497,1761973482326,-500.0,0.00032989,2]
[392804498,1761973482361,-500.0,0.00032989,7]
[392804499,1761973482393,-500.0,0.00032989,7]
[392804500,1761973482423,-500.0,0.00032989,2]
[392804501,1761973482457,-500.0,0.00032989,7]
[392804502,1761973482491,-500.0,0.00032989,7]
[392804503,1761973482529,-500.0,0.00032989,2]
[392804504,1761973482560,-500.0,0.00032989,7]
[392804505,1761973482684,-500.0,0.00032989,7]
[392804506,1761973482713,-500.0,0.00032989,2]
[392804507,1761973482743,-500.0,0.00032989,7]
[392804508,1761973482772,-500.0,0.00032989,7]
[392804509,1761973482800,-500.0,0.00032989,2]
[392804510,1761973482830,-500.0,0.00032989,7]
[392804511,1761973482858,-500.0,0.00032989,2]
[392804512,1761973482886,-449.28627661,0.00032989,7]
[392804513,1761973482916,-500.0,0.00032989,7]
[392804514,1761973482946,-500.0,0.00032989,7]
[392804515,1761973483182,-500.0,0.00032989,7]
[392804516,1761973483196,-101.43744678,0.00032989,7]
[392804517,1761973494861,999.0,0.00034861,120]
[392804522,1761973529014,151.0,0.00034873,31]
[392804523,1761973529654,151.0,0.0003498,31]
[392804524,1761973530081,151.0,0.00035549,31]
[392804525,1761973533460,151.0,0.00034873,31]
[392804526,1761973533761,151.0,0.0003498,31]
[392804527,1761973534174,151.0,0.00035549,31]
[392804528,1761973534398,151.0,0.00035606,31]
[392804529,1761973534686,151.0,0.00035616,31]
[392804530,1761973535042,151.0,0.00034873,31]
[392804531,1761973535338,151.0,0.0003498,31]
[392804532,1761973535634,151.0,0.00035549,31]
[392804533,1761973535974,151.0,0.00035606,31]
[392804534,1761973536250,151.0,0.00035616,31]
[392804535,1761973536621,151.0,0.00034873,31]
[392804536,1761973536803,194.851796,0.0003498,31]
[392804537,1761973551040,150.0,0.0002589,2]
[392804538,1761973551873,-177.0,0.0002789,2]
[392804539,1761973655373,151.0,0.00034852,31]